{"text_format":"3","workbook":"xlsx","n_sheets":1,"sheets":["UNPRICED BOQ"],"not_rendered":{"external_links":109,"defined_names":2998},"read":"whole","date_system":"1900"}

{"sheet":"UNPRICED BOQ","index":0,"n_rows":140,"n_cols":13,"rows_kept":140,"merged":[[139,5,139,6]]}
[]
[]
[]
[]
[]
[null,"Item ",null,"Description ","Unit ","Qty","Rate ","Amount "]
[{"$nulls":4},""]
[null,1,null,"SECTION A: SLUICE WAYS,  COAL CHUTES,  TRIPPER CARS AND CHUTE REPAIRS",{"$nulls":3},{"$f":"H38+H84+H106","v":0}]
[]
[{"$nulls":3},"BILL OF QUANTITIES "]
[]
[{"$nulls":3},"PREAMBLE"]
[]
[{"$nulls":3},"Currency"]
[]
[{"$nulls":3},"All pricing and amounts to be in the currency of South African Rands (ZAR)"]
[]
[{"$nulls":3},"All individual amounts in these bills of quantities exclude Value Added Tax (VAT). VAT is to be calculated as a lump sum and added to the total of all values in the Final Summary under the item provided for VAT."]
[]
[{"$nulls":3},"A detailed  and / or itemised breakdown of the P&G's Items will be requested only from the successful bidders for vetting by the employer."]
[]
[{"$nulls":3},"RATES"]
[]
[{"$nulls":3},"The tenderer is advised that any rate that is required for work must include the following breakdown"]
[]
[{"$nulls":3},"Material, labour, plant, wastage, transport and profit."]
[]
[{"$nulls":3},"SPECIFICATION DOCUMENT"]
[]
[{"$nulls":3},"The Contractor is reffered to the Specification Document for the full details of the scope and they are urged to read this document prior to pricing this work."]
[]
[{"$nulls":3},"SCOPE OF WORKS"]
[]
[{"$nulls":3},{"$f":"\"The scope of works encompasses the   \"&B4","v":"The scope of works encompasses the   "}]
[]
[]
[]
[null,1.1,null,"PRELIMINARIES AND GENERAL",{"$nulls":3},{"$f":"SUBTOTAL(9,H40:H82)","v":0}]
[]
[]
[]
[null,"1.1.1",null,{"$f":"PROPER(\"FIXED-CHARGE ITEMS\")","v":"Fixed-Charge Items"}]
[]
[null,"1.1.1.1",null,"Health and Safety File Compilation & Client Submission","Once -Off ",1,null,{"$f":"ROUND((F44*G44),2)","v":0}]
[]
[null,"1.1.1.2",null,"Personal Protective Equipment (PPE) - Initial Issue","Yearly ",3,null,{"$f":"ROUND((F46*G46),2)","v":0}]
[]
[null,"1.1.1.3",null,"Occupational Medical Surveillance Exam - Entry","Yearly ",1,null,0]
[]
[null,"1.1.1.4",null,"Occupational Medical Surveillance Exam - Periodical","Yearly ",1,null,0]
[]
[null,"1.1.1.5",null,"Occupational Medical Surveillance Exam - Exit","Yearly ",1,null,0]
[]
[null,"1.1.1.6",null,"Police Clearance Certificates & Background Verifications","Yearly ",3,null,0]
[]
[null,"1.1.1.7",null,"Site Establishment","Once -Off ",1,null,0]
[]
[null,"1.1.1.8",null,"Tools and Equipment","Sum ",1,null,{"$f":"ROUND((F58*G58),2)","v":0}]
[]
[]
[]
[null,"1.1.2",null,{"$f":"PROPER(\"TIME RELATED ITEMS\")","v":"Time Related Items"}]
[]
[null,"1.1.2.1",null,"Office Container Rental & Utility Provisioning  (6m)","Monthly",36,null,{"$f":"ROUND((F64*G64),2)","v":0}]
[]
[null,"1.1.2.2",null,"Storeroom Container Rental (Epoxies / Material Storage) (6m)","Monthly",36,null,0]
[]
[null,"1.1.2.3",null,"Kitchen Container Facilities Provisioning 6m","Monthly",36,null,0]
[]
[null,"1.1.2.4",null,"Toilet Container Rental & Servicing - Unit 1 ( Male & Female) 6m","Monthly",36,null,0]
[]
[null,"1.1.2.6",null,"Site Transport Logistics","Daily",500,null,0]
[]
[null,"1.1.2.7",null,"Accommodation","Daily",360,null,0]
[]
[]
[]
[null,"1.1.3",null,{"$f":"PROPER(\"DE-ESTABLISHMENT ITEMS\")","v":"De-Establishment Items"}]
[]
[null,"1.1.3.1",null,"Site De-establishment ","Sum ",1,null,{"$f":"ROUND((F80*G80),2)","v":0}]
[]
[]
[]
[null,1.2,null,"LABOUR - COAL CHUTE REPAIRS ",{"$nulls":3},{"$f":"SUBTOTAL(9,H85:H105)","v":0}]
[]
[]
[]
[null,"1.2.1",null,{"$f":"PROPER(\"Normal Working Hours: As and When\")","v":"Normal Working Hours: As And When"}]
[]
[null,"1.2.1.1",null,"Supervisor","Hours",1500,null,{"$f":"ROUND((F90*G90),2)","v":0}]
[]
[null,"1.2.1.2",null,"Boilermaker","Hours",1500,null,0]
[]
[null,"1.2.1.3",null,"Welder","Hours",1500,null,0]
[]
[null,"1.2.1.4",null,"Assistant","Hours",1500,null,0]
[]
[]
[]
[null,"1.2.2",null,{"$f":"PROPER(\"Waiting Period for the team due to permits\")","v":"Waiting Period For The Team Due To Permits"}]
[]
[null,"1.2.2.1",null,"Waiting period for the team/ standing time","Hours",360,null,{"$f":"ROUND((F102*G102),2)","v":0}]
[]
[]
[]
[null,1.3,null,"SUPPLY AND INSTALLATION OF TILES",{"$nulls":3},{"$f":"SUBTOTAL(9,H107:H125)","v":0}]
[]
[]
[]
[{"$nulls":3},"Note: Each rate must encompass the full cost build-up for a final, completed installation, explicitly including: the procurement and delivery to Camden Power Station of all  ceramic tiles, specialized high-temperature epoxies, and weld-inserts; an absolute allowance for material cutting waste and breakages; all direct and indirect costs. "]
[]
[]
[]
[null,"1.1.3.1.",null,"6 mm thick plain tiles","m2",120,null,{"$f":"ROUND((F114*G114),2)","v":0}]
[]
[null,"1.1.3.2",null,"12mm thick plain tiles","m2",220,null,0]
[]
[null,"1.1.3.3",null,"12.5 mm thick weld on tiles: on a flat surfaces","m2",50,null,0]
[]
[null,"1.1.3.4",null,"12mm thick weld tiles","m2",120,null,0]
[]
[null,"1.1.3.5",null,"Pre - engineered 12 mm thick plain tiles","m2",50,null,0,{"$nulls":4},"BOILER MAINTENANCE: MILLS,  BURNER SCROLLS & PF PIPES"]
[]
[null,"1.1.3.6",null,"25mm thick weld tiles","m2",120,null,0]
[]
[]
[]
[null,2,null,"SECTION B: BOILER MAINTENANCE: MILLS,  BURNER SCROLLS & PF PIPES",{"$nulls":3},{"$f":"H131","v":0}]
[]
[]
[null,2.1,{"$nulls":5},{"$f":"SUM(H133:H138)","v":0}]
[]
[]
[null,"2.1.1",null,"6 mm thick plain tiles","m2",258.8,null,{"$f":"ROUND((F134*G134),2)","v":0}]
[]
[null,"2.2.2",null,"12 mm thick plain tiles","m2",823.1,null,{"$f":"ROUND((F136*G136),2)","v":0}]
[]
[]
[]
[{"$nulls":7},{"$f":"H128+H8","v":0}]